bitfinex/quotes_ETHUSD_20241116
["timestamp","ask_amount","ask_price","bid_price","bid_amount"]
[1731797299264,3.16968,3154.9,3154.6,0.81937284]
[1731797299474,3.21229995,3154.9,3154.6,0.81937284]
[1731797302569,3.16978,3154.8,3154.6,0.81937284]
[1731797302866,0.04258749,3154.7,3154.6,0.81937284]
[1731797303037,3.16978,3154.8,3154.6,0.81937284]
[1731797303239,0.04258749,3154.7,3154.6,0.81937284]
[1731797303563,3.16978,3154.8,3154.6,0.81937284]
[1731797303772,0.04258749,3154.7,3154.6,0.81937284]
[1731797304066,3.16987,3154.7,3154.6,0.81937284]
[1731797304219,3.21242879,3154.7,3154.6,0.81937284]
[1731797305625,3.85063967,3154.7,3154.6,0.81937284]
[1731797306453,3.1701,3154.5,3154.0,0.7769]
[1731797306833,0.04248255,3154.4,3154.0,0.7769]
[1731797307428,0.04248255,3154.4,3154.0,3.94745]
[1731797307663,0.04248255,3154.4,3154.1,0.7769]
[1731797321265,3.21266255,3154.4,3154.1,0.7769]
[1731797328273,0.68075881,3154.4,3153.8,3.17071]
[1731797328515,3.17028,3154.3,3153.8,3.92521]
[1731797328918,0.04241657,3154.2,3153.8,3.92521]
[1731797329412,0.04240152,3154.1,3153.8,3.92521]
[1731797329772,3.17028,3154.3,3153.8,3.92521]
[1731797329973,0.0423998,3154.2,3153.8,3.92521]
[1731797330206,3.17028,3154.3,3153.8,3.92521]
[1731797330370,0.0423998,3154.2,3153.8,3.92521]
[1731797330579,3.17028,3154.3,3153.8,3.92521]
[1731797330818,0.0423998,3154.2,3153.8,3.92521]
[1731797331318,3.17028,3154.3,3153.8,3.92521]
[1731797331523,0.04238476,3154.1,3153.8,3.92521]
[1731797331680,0.0423998,3154.2,3153.8,3.92521]
[1731797331882,0.04236971,3154.0,3153.8,3.92521]
[1731797332113,3.17028,3154.3,3153.8,3.92521]
[1731797332317,0.04235467,3153.9,3153.8,3.92521]
[1731797332779,3.17028,3154.3,3153.8,3.92521]
[1731797333120,0.0423998,3154.2,3153.8,3.92521]
[1731797333431,3.17028,3154.3,3153.8,3.92521]
[1731797333580,0.04238476,3154.1,3153.8,3.92521]
[1731797333774,3.17028,3154.3,3153.8,3.92521]
[1731797334127,0.0423998,3154.2,3153.8,3.92521]
[1731797334430,3.86814563,3154.3,3153.8,3.92521]
[1731797334732,3.86814563,3154.3,3152.3,0.1432644]
[1731797334733,0.82,3153.1,3152.3,0.1432644]
[1731797334881,1.29694771,3152.9,3152.3,0.1432644]
[1731797335102,0.82,3152.8,3152.3,0.1432644]
[1731797335412,3.99218,3152.4,3152.3,0.1432644]
[1731797335593,5.28912771,3152.4,3152.3,0.1432644]
[1731797335796,5.32813349,3152.4,3152.3,0.1432644]
[1731797336239,5.87813349,3152.4,3152.3,0.1432644]
[1731797336439,5.32813349,3152.4,3152.3,0.1432644]
[1731797336937,5.87813349,3152.4,3152.3,0.1432644]
[1731797337316,8.89683664,3152.4,3152.3,4.4e-06]
[1731797339056,7.59988893,3152.4,3152.3,4.4e-06]
[1731797339258,7.59045978,3152.4,3152.3,4.4e-06]
[1731797339445,6.76118578,3152.4,3152.3,4.4e-06]
[1731797339821,3.76118578,3152.4,3152.3,4.4e-06]
[1731797342167,4.58512753,3152.4,3152.3,4.4e-06]
[1731797365485,5.40422753,3152.4,3152.3,4.4e-06]
[1731797375149,4.58512753,3152.4,3152.3,4.4e-06]
[1731797375335,3.76118578,3152.4,3152.3,4.4e-06]
[1731797376821,3.21118578,3152.4,3152.3,4.4e-06]
[1731797384633,3.97018578,3152.4,3152.3,4.4e-06]
[1731797384830,3.21118578,3152.4,3152.3,4.4e-06]
[1731797385031,4.29640713,3152.4,3152.3,4.4e-06]
[1731797399359,4.84640713,3152.4,3152.3,4.4e-06]
[1731797400719,9.13947643,3152.4,3152.3,4.4e-06]
[1731797401267,10.43642414,3152.4,3152.3,4.4e-06]
[1731797401814,10.43642414,3152.4,3150.4,0.7661]
[1731797401815,3.17379,3150.8,3150.4,0.7661]
[1731797401988,3.17409,3150.5,3150.4,0.7661]
[1731797402389,3.20828793,3150.5,3150.4,0.7661]
[1731797403190,0.55,3150.4,3149.8,0.7661]
[1731797403502,3.1747,3149.9,3149.8,0.7661]
[1731797404057,3.1747,3149.9,3149.3,0.7661]
[1731797404058,3.17507,3149.6,3149.3,0.7661]
[1731797404195,0.03396913,3149.5,3149.3,0.7661]
[1731797404750,3.20907913,3149.5,3149.3,0.7661]
[1731797405809,3.1752,3149.4,3149.3,0.7661]
[1731797406109,3.20915404,3149.4,3149.3,0.7661]
[1731797408612,3.20915404,3149.4,3149.2,0.1432644]
[1731797414208,0.03395404,3149.4,3149.2,0.1432644]
[1731797414422,3.1753,3149.3,3149.2,0.1432644]
[1731797414800,3.20881175,3149.3,3149.2,0.1432644]
[1731797422457,3.84720293,3149.3,3149.2,0.1432644]
[1731797426548,4.39720293,3149.3,3149.2,0.1432644]
[1731797430385,5.21000293,3149.3,3149.2,0.1432644]
[1731797430581,5.21927693,3149.3,3149.2,0.1432644]
[1731797430784,8.22870608,3149.3,3149.2,4.4e-06]
[1731797432364,9.56295485,3149.3,3149.2,4.4e-06]
[1731797432672,10.85990256,3149.3,3149.2,4.4e-06]
[1731797432858,11.62834355,3149.3,3149.2,4.4e-06]
[1731797434291,12.08427584,3149.3,3149.2,4.4e-06]
[1731797436507,12.47208957,3149.3,3149.2,4.4e-06]
[1731797439119,21.21208957,3149.3,3149.2,4.4e-06]
[1731797439414,8.03243171,3148.4,3148.3,0.00250045]
[1731797439923,8.1028373,3148.4,3148.3,0.00250045]
[1731797441281,8.1028373,3148.4,3148.3,4.5e-07]
[1731797442007,8.11226645,3148.4,3148.3,4.5e-07]
[1731797444103,0.009274,3148.0,3147.6,0.77630045]
[1731797444358,3.17732,3147.3,3147.2,0.7476597]
[1731797444875,3.24751381,3147.3,3147.2,0.7476597]
[1731797445080,3.24751381,3147.3,3147.2,0.6976597]
[1731797446223,3.24751381,3147.3,3147.2,0.5976597]
[1731797446778,3.24751381,3147.3,3147.2,0.5476597]
[1731797447217,3.24751381,3147.3,3147.2,1.3553597]
[1731797447419,3.79751381,3147.3,3147.2,0.5476597]
[1731797447785,3.79751381,3147.3,3147.2,0.3476597]
[1731797449223,3.79751381,3147.3,3147.2,1.1553597]
[1731797451486,0.07019381,3147.3,3147.2,0.8077]
[1731797451687,3.17692,3147.7,3147.2,3.17742]
[1731797451913,3.17675,3147.9,3147.4,0.8278]
[1731797452390,0.0587387,3147.8,3147.4,3.17715]
[1731797452585,0.0587387,3147.8,3147.5,3.17711]
[1731797452815,3.17649,3148.2,3147.6,0.8278]
[1731797453003,0.05878532,3147.7,3147.6,0.8278]
[1731797453327,3.17652,3148.1,3147.6,0.8278]
[1731797453509,3.17625,3148.4,3147.6,0.8278]
[1731797453510,3.17641,3148.2,3147.7,0.8278]
[1731797453716,6.35253,3148.4,3147.7,4.47385771]
[1731797453882,3.17625,3148.4,3147.8,4.0046]
[1731797454241,0.05701043,3148.3,3147.9,0.8278]
[1731797454586,0.05701043,3148.3,3147.9,3.0]
[1731797454787,3.17625,3148.4,3148.1,0.63003722]
[1731797454985,3.17625,3148.4,3148.2,0.8278]
[1731797455220,0.05701043,3148.3,3148.2,0.8278]
[1731797455600,3.17602,3148.6,3148.2,0.8278]
[1731797456139,0.05707324,3148.5,3148.2,0.8278]
[1731797457814,0.05707324,3148.5,3148.2,3.1764]
[1731797458020,0.05707324,3148.5,3148.3,4.0041]
[1731797458343,3.17563,3149.0,3148.5,0.8278]
[1731797458524,3.17522,3149.4,3148.6,0.8278]
[1731797458692,3.17551,3149.1,3148.6,0.8278]
[1731797458892,3.17537,3149.3,3148.7,0.8278]
[1731797459407,3.17537,3149.3,3148.8,0.8278]
[1731797460315,3.17516,3149.5,3148.8,0.8278]
[1731797460636,3.17521,3149.4,3148.8,0.8278]
[1731797461135,3.17531,3149.3,3148.8,0.8278]
[1731797461993,3.1755,3149.2,3148.8,0.8278]
[1731797462503,3.17531,3149.3,3148.8,0.8278]
[1731797463594,3.1756,3149.1,3148.8,0.8278]
[1731797463794,0.55,3149.7,3148.2,0.7919]
[1731797463795,3.17571,3148.9,3148.2,0.7919]
[1731797464631,3.17595,3148.7,3148.2,0.7919]
[1731797464946,3.17619,3148.5,3148.2,0.7919]
[1731797468808,0.05723946,3148.4,3148.2,0.7919]
[1731797469635,0.05723946,3148.4,3148.3,7.049135]
[1731797469803,3.1752,3149.5,3148.5,0.8093]
[1731797470004,3.1752,3149.5,3148.9,0.8093]
[1731797470254,0.05354335,3149.4,3148.9,0.8093]
[1731797470754,3.17537,3149.3,3148.9,0.8093]
[1731797471258,0.0535265,3149.2,3148.9,0.8093]
[1731797471551,3.17537,3149.3,3148.9,0.8093]
[1731797471715,0.05351505,3149.1,3148.9,0.8093]
[1731797471917,3.17537,3149.3,3148.9,0.8093]
[1731797472117,0.05352892,3149.2,3148.9,0.8093]
[1731797472322,3.17537,3149.3,3148.9,0.8093]
[1731797472749,0.05352892,3149.2,3148.9,0.8093]
[1731797473127,3.17537,3149.3,3148.9,0.8093]
[1731797473326,0.05359178,3149.2,3148.9,0.8093]
[1731797473522,3.17537,3149.3,3148.9,0.8093]
[1731797473731,0.05361475,3149.2,3148.9,0.8093]
[1731797473906,3.17537,3149.3,3148.9,0.8093]
[1731797474110,0.05361475,3149.2,3148.9,0.8093]
[1731797474311,3.17537,3149.3,3148.9,0.8093]
[1731797474523,0.05361475,3149.2,3148.9,0.8093]
[1731797474724,3.17537,3149.3,3148.9,0.8093]
[1731797474946,0.05361595,3149.2,3148.9,0.8093]
[1731797475425,3.17537,3149.3,3148.9,0.8093]
[1731797475693,0.05360208,3149.1,3148.9,0.8093]
[1731797475848,3.17533,3149.3,3148.9,0.8093]
[1731797476061,0.05359065,3149.0,3148.9,0.8093]
[1731797476243,3.17533,3149.3,3148.9,0.8093]
[1731797476443,0.05359065,3149.0,3148.9,0.8093]
[1731797476643,3.17489,3149.8,3148.7,6.17582]
[1731797476982,3.17489,3149.8,3149.2,0.8093]
[1731797477858,3.17489,3149.8,3149.2,3.1754]
[1731797478189,3.17489,3149.8,3149.3,0.8093]
[1731797481256,3.17497,3149.7,3149.3,0.8093]
[1731797481594,3.17501,3149.6,3149.3,0.8093]
[1731797482282,3.17492,3149.7,3149.3,0.8093]
[1731797483818,0.05370164,3149.6,3149.3,0.8093]
[1731797485821,3.17489,3149.8,3149.3,0.8093]
[1731797486195,0.0537155,3149.7,3149.3,0.8093]
[1731797486613,3.17489,3149.8,3149.3,0.8093]
[1731797486835,0.05370164,3149.6,3149.3,0.8093]
[1731797487012,3.17503,3149.6,3149.3,0.8093]
[1731797487531,0.05368777,3149.5,3149.3,0.8093]
[1731797488542,0.05367391,3149.4,3149.3,0.87279789]
[1731797488712,3.17482,3149.8,3149.3,0.8093]
[1731797488915,0.0537155,3149.7,3149.3,0.8093]
[1731797489210,3.17464,3150.0,3149.4,0.06349689]
[1731797489520,6.34933,3150.0,3149.4,0.06349689]
[1731797490026,3.17507,3149.6,3149.3,0.8093]
[1731797490531,0.05199496,3149.5,3149.3,0.8093]
[1731797490739,3.22717496,3149.5,3149.3,0.8093]
[1731797490907,0.05199496,3149.5,3149.3,0.8093]
[1731797491107,3.22714496,3149.5,3149.3,0.8093]
[1731797491324,3.22714496,3149.5,3149.0,0.752]
[1731797491325,3.1752,3149.4,3149.0,0.752]
[1731797491533,3.17583,3148.8,3148.4,0.752]
[1731797491837,3.17583,3148.8,3148.1,3.17649]
[1731797491838,4.00777,3148.5,3147.9,3.17669]
[1731797492199,0.05177355,3148.4,3147.9,3.17669]
[1731797494320,0.05177355,3148.4,3148.3,0.63680479]
[1731797494601,0.05177355,3148.4,3148.3,4.56511479]
[1731797494817,0.05177355,3148.4,3148.3,1.38880479]
[1731797495042,3.17582,3148.8,3148.3,1.38880479]
[1731797495233,3.1758,3148.9,3148.3,1.38880479]
[1731797495234,0.04996213,3148.4,3148.3,1.38880479]
[1731797495747,3.17591,3148.7,3148.3,1.38880479]
[1731797495940,0.04998988,3148.6,3148.3,1.38880479]
[1731797497626,3.17583,3148.8,3148.3,1.38880479]
[1731797497950,0.049976,3148.5,3148.3,1.38880479]
[1731797498255,0.04996213,3148.4,3148.3,1.38880479]
[1731797498740,3.17583,3148.8,3148.3,1.38880479]
[1731797498945,0.04831077,3148.4,3148.3,4.39880479]
[1731797499260,3.17475,3149.9,3148.3,4.39880479]
[1731797499261,3.99033,3149.8,3149.1,3.98813]
[1731797499420,3.87207427,3150.0,3149.2,3.17532]
[1731797499421,4.11938083,3149.9,3149.2,3.17532]
[1731797499746,4.11938083,3149.9,3149.3,3.17528]
[1731797499747,0.04108515,3149.7,3149.3,3.17528]
[1731797499952,0.04107129,3149.6,3149.3,3.17528]
[1731797500103,3.17471,3149.9,3149.3,3.17528]
[1731797500304,0.67603402,3149.8,3149.3,3.17528]
[1731797501962,0.67603402,3149.8,3149.4,3.17518]
[1731797503152,3.98849,3149.6,3148.9,3.23920392]
[1731797503454,0.04114605,3149.5,3148.9,3.1757]
[1731797505959,3.21626605,3149.5,3148.9,3.1757]
[1731797506319,3.93672266,3149.5,3148.9,3.1757]
[1731797506966,3.93672266,3149.5,3149.0,3.17561]
[1731797508120,3.17523,3149.4,3148.8,3.17572]
[1731797508324,0.04111832,3149.3,3148.8,3.17572]
[1731797510848,0.04111832,3149.3,3149.2,3.1754]
[1731797511225,3.17471,3149.9,3149.3,3.17521]
[1731797511427,3.890971,3149.9,3149.3,3.17521]
[1731797511650,0.04124592,3149.8,3149.3,3.17521]
[1731797514871,0.04124592,3149.8,3149.4,3.1752]
[1731797515196,3.17372,3150.9,3150.3,3.1743]
[1731797515362,3.96845869,3151.6,3150.5,3.17407]
[1731797515363,0.8134,3151.1,3150.5,3.17407]
[1731797515694,4.44399587,3151.5,3151.0,0.8324]
[1731797515894,3.17299,3151.6,3151.1,3.17349]
[1731797516049,3.98621,3151.8,3151.1,3.17349]
[1731797516252,3.17281,3151.8,3151.2,3.17337]
[1731797516453,0.398621,3151.8,3151.3,3.17329]
[1731797518088,0.398621,3151.8,3151.1,3.17349]
[1731797518291,3.17295,3151.7,3151.0,0.8324]
[1731797518462,3.17309,3151.5,3150.7,3.17387]
[1731797518664,3.1733,3151.3,3150.6,3.0]
[1731797518882,3.1733,3151.3,3150.5,3.17408]
[1731797519086,3.1733,3151.3,3150.1,3.17446]
[1731797519087,0.8092,3151.1,3150.1,3.17446]
[1731797519253,0.8092,3151.1,3150.2,0.62054746]
[1731797519254,3.17378,3150.9,3150.2,0.62054746]
[1731797519650,3.1739,3150.7,3150.2,0.62054746]
[1731797522820,3.1739,3150.7,3150.1,3.17446]
[1731797526465,3.808668,3150.7,3150.1,3.17446]
[1731797526958,0.8092,3151.1,3150.2,3.0]
[1731797527163,3.17368,3151.0,3150.6,0.8029]
[1731797527458,3.1735,3151.1,3150.6,0.8029]
[1731797527623,0.634691,3151.0,3150.6,0.8029]
[1731797527824,3.17336,3151.3,3150.6,0.8029]
[1731797528316,0.03654285,3151.2,3150.6,0.8029]
[1731797529451,3.20998285,3151.2,3150.6,0.8029]
[1731797529651,3.17344,3151.2,3150.6,0.8029]
[1731797529968,0.036529,3151.1,3150.6,0.8029]
[1731797531460,0.036529,3151.1,3150.6,3.97681]
[1731797531841,3.210019,3151.1,3150.6,3.97681]
[1731797532160,3.210019,3151.1,3150.6,0.8029]
[1731797534837,3.17361,3151.0,3150.6,0.8029]
[1731797535380,3.17361,3151.0,3150.3,0.7849]
[1731797535381,3.17402,3150.6,3150.3,0.7849]
[1731797535671,0.7782,3150.3,3149.9,0.64216138]
[1731797535829,3.9525,3150.3,3149.9,0.64216138]
[1731797536031,0.0359407,3150.2,3149.9,0.64216138]
[1731797536433,3.1742,3150.4,3149.9,0.64216138]
[1731797536629,0.03592684,3150.1,3149.9,0.64216138]
[1731797536834,3.1742,3150.4,3149.9,0.64216138]
[1731797537051,0.03591299,3150.0,3149.9,0.64216138]
[1731797537543,3.1742,3150.4,3149.9,0.64216138]
[1731797538167,0.03595456,3150.3,3149.8,3.17474]
[1731797538890,3.17446,3150.2,3149.7,0.7849]
[1731797539096,0.7782,3150.1,3149.6,3.8247565]
[1731797539243,3.17482,3149.8,3149.3,0.7849]
[1731797539612,3.17482,3149.8,3149.1,3.17543]
[1731797539613,3.9532,3149.6,3149.1,3.17543]
[1731797539789,3.9532,3149.6,3148.7,3.17584]
[1731797539790,3.17526,3149.4,3148.7,3.17584]
[1731797540084,3.17526,3149.4,3148.5,3.17607]
[1731797540285,3.17542,3149.2,3148.5,6.35211]
[1731797540488,3.17542,3149.2,3148.6,3.17597]
[1731797540777,0.03559777,3149.1,3148.6,3.17597]
[1731797540950,0.03559777,3149.1,3148.8,0.63214926]
[1731797541459,6.35055,3149.4,3148.8,0.63214926]
[1731797541772,0.0356255,3149.3,3148.8,0.63214926]
[1731797542077,3.2109655,3149.3,3148.8,0.63214926]
[1731797547982,3.17541,3149.2,3148.8,0.63214926]
[1731797548186,0.03559777,3149.1,3148.8,0.63214926]
[1731797551165,0.03559777,3149.1,3148.9,0.7663]
[1731797551323,3.17526,3149.4,3148.9,0.7663]
[1731797551529,0.034241,3149.0,3148.9,0.7663]
[1731797551719,3.17526,3149.4,3148.9,0.7663]
[1731797552347,0.0342826,3149.3,3148.9,0.7663]
[1731797552849,0.0342826,3149.3,3148.8,0.63214926]
[1731797553736,3.2095926,3149.3,3148.8,0.63214926]
[1731797553926,3.2095926,3149.3,3148.7,3.17589]
[1731797554225,0.8254,3149.1,3148.6,3.176]
[1731797554616,0.03253064,3149.0,3148.6,3.176]
[1731797556156,0.03253064,3149.0,3148.5,3.17603]
[1731797557580,0.03253064,3149.0,3148.4,3.64363205]
[1731797557581,3.17578,3148.9,3148.4,3.64363205]
[1731797557791,0.03140441,3148.8,3148.4,3.64363205]
[1731797559159,0.03140441,3148.8,3148.4,0.64363205]
[1731797559363,3.52801285,3148.8,3148.4,0.64363205]
[1731797559592,3.17591,3148.7,3148.0,6.94285]
[1731797559792,3.17591,3148.7,3148.0,3.94285]
[1731797559793,4.03277632,3148.6,3148.0,3.94285]
[1731797560205,7.20887632,3148.6,3148.1,0.63265311]
[1731797560413,3.17625,3148.4,3148.1,0.63265311]
[1731797560712,4.03277632,3148.6,3148.0,0.7663]
[1731797560869,0.0313047,3148.3,3148.0,0.7663]
[1731797561081,3.17613,3148.5,3148.0,3.0]
[1731797561300,0.03129083,3148.2,3148.0,3.0]
[1731797561498,3.17613,3148.5,3148.0,3.0]
[1731797561711,0.03126359,3148.1,3148.0,3.0]
[1731797562327,3.17613,3148.5,3148.0,3.0]
[1731797562831,0.03130522,3148.4,3148.0,3.0]
[1731797563839,4.43677948,3148.6,3148.0,3.0]
[1731797563981,0.03129134,3148.3,3148.0,3.0]
[1731797564186,7.61287948,3148.6,3148.0,3.0]
[1731797564414,0.03131909,3148.5,3148.0,3.0]
[1731797565102,3.20743909,3148.5,3148.0,3.0]
[1731797566487,3.97186095,3148.5,3148.0,3.0]
[1731797568137,3.97186095,3148.5,3147.9,3.17668]
[1731797572206,3.20743909,3148.5,3147.9,3.17668]
[1731797573649,0.03131909,3148.5,3147.9,3.17668]
[1731797573812,3.17623,3148.4,3147.8,0.6457715]
[1731797574154,0.03091394,3148.3,3147.8,3.8225715]
[1731797576554,0.03091394,3148.3,3147.8,3.1768]
[1731797576939,3.17644,3148.2,3147.7,3.95949]
[1731797577282,0.03088619,3148.1,3147.7,3.95949]
[1731797577440,0.03088619,3148.1,3147.7,4.60822889]
[1731797578191,0.03088619,3148.1,3147.7,1.43133889]
[1731797580687,0.7876,3148.0,3147.7,0.64873889]
[1731797580853,0.03088619,3148.1,3147.7,0.64873889]
[1731797581039,3.17644,3148.2,3147.7,0.64873889]
[1731797581040,0.03085843,3147.9,3147.7,0.64873889]
[1731797581385,3.17644,3148.2,3147.7,0.64873889]
[1731797581596,0.03080932,3147.8,3147.7,0.64873889]
[1731797582092,3.17644,3148.2,3147.7,0.64873889]
[1731797582697,0.03085095,3148.1,3147.7,0.64873889]
[1731797590379,3.20738095,3148.1,3147.7,0.64873889]
[1731797592790,0.55,3148.0,3147.7,0.64873889]
[1731797593134,0.03071754,3147.9,3147.7,0.64873889]
[1731797596104,0.55,3148.2,3147.7,0.64873889]
[1731797596315,0.03067209,3147.8,3147.7,0.64873889]
[1731797596634,0.55,3148.2,3147.7,0.64873889]
[1731797597211,0.03072101,3148.1,3147.7,0.64873889]
[1731797599095,3.17662,3148.0,3147.7,0.64873889]
[1731797599298,0.55,3147.9,3147.5,3.0]
[1731797599495,0.55,3147.9,3147.6,3.17702]
[1731797599722,0.0306806,3147.8,3147.6,3.17702]
[1731797600087,0.55,3148.1,3147.6,3.17702]
[1731797600329,0.03066672,3147.7,3147.6,3.0]
[1731797600529,1.319053,3148.1,3147.5,3.64029402]
[1731797600530,0.55,3147.9,3147.5,3.64029402]
[1731797600730,0.03066672,3147.7,3147.5,3.64029402]
[1731797601033,0.03065284,3147.6,3147.5,3.64029402]
[1731797601239,0.55,3147.9,3147.5,3.64029402]
[1731797601439,0.0306806,3147.8,3147.5,3.0]
[1731797601908,0.55,3147.7,3147.3,3.0]
[1731797602294,0.0306334,3147.6,3147.3,3.0]
[1731797603329,0.0306334,3147.6,3147.1,3.7762]
[1731797603544,0.0306334,3147.6,3147.4,0.62823336]
[1731797603726,0.55,3147.5,3147.1,3.0]
[1731797604101,0.03059349,3147.4,3147.1,3.0]
[1731797605231,0.58059349,3147.4,3147.0,0.63134374]
[1731797607237,0.55,3147.2,3146.9,6.17772]
[1731797607612,0.03055184,3147.1,3146.9,3.0]
[1731797608411,0.03055184,3147.1,3146.9,6.81240201]
[1731797608797,0.03055184,3147.1,3146.9,3.63471201]
[1731797609104,0.03055184,3147.1,3146.8,3.17776]
[1731797610507,0.03055184,3147.1,3146.8,3.17783]
[1731797610857,0.03055184,3147.1,3147.0,3.17762]
[1731797611143,0.7661,3147.6,3147.1,3.95369]
[1731797611317,1.478093,3147.6,3147.1,3.95369]
[1731797611519,0.7661,3147.6,3147.1,3.95369]
[1731797612144,0.55,3147.5,3147.1,3.95369]
[1731797613443,0.55,3147.5,3147.2,0.3169]
[1731797613631,0.55,3147.5,3147.1,3.95369]
[1731797614520,3.72717,3147.5,3146.9,0.7762]
[1731797615134,3.72717,3147.5,3146.9,3.7762]
[1731797615932,0.55,3147.5,3147.1,3.17751]
[1731797616144,0.55,3147.5,3147.2,0.0635419]
[1731797617499,0.55,3147.5,3147.1,0.06354204]
[1731797618735,0.03046953,3147.4,3147.0,3.17757]
[1731797624705,0.03046953,3147.4,3147.0,3.07874114]
[1731797624909,0.03046953,3147.4,3147.2,0.7757]
[1731797625149,0.03046953,3147.4,3147.3,3.95302]
[1731797625352,3.94414,3148.3,3147.4,0.7757]
[1731797625507,3.94414,3148.3,3147.7,3.17691]
[1731797625508,0.71204,3148.2,3147.7,3.17691]
[1731797625708,3.88851,3148.2,3147.5,6.35412]
[1731797626048,3.88851,3148.2,3147.6,3.93941]
[1731797626812,0.55,3148.1,3147.7,0.0635302]
[1731797627620,0.55,3148.1,3147.6,3.93941]
[1731797629914,0.55,3148.1,3147.6,0.7624]
[1731797630116,3.17656,3148.1,3147.6,0.7624]
[1731797630323,0.55,3148.0,3147.6,0.7624]
[1731797632891,0.55,3148.0,3147.5,0.62862057]
[1731797632892,0.55,3147.8,3147.5,0.62862057]
[1731797636314,3.17672,3147.9,3147.5,0.62862057]
[1731797636865,0.7773,3147.8,3147.5,0.62862057]
[1731797637263,3.17704,3147.6,3147.2,3.0]
[1731797637479,3.17704,3147.6,3146.9,3.17771]
[1731797637480,0.7773,3147.3,3146.9,3.17771]
[1731797637680,0.7773,3147.3,3146.5,0.823]
[1731797637681,3.17759,3147.1,3146.5,0.823]
[1731797637895,3.17759,3147.1,3146.1,0.1432644]
[1731797637896,0.55,3146.7,3146.1,0.1432644]
[1731797638107,3.728,3146.7,3146.1,0.1432644]
[1731797638549,3.728,3146.7,3146.1,3.3217944]
[1731797639758,3.728,3146.7,3146.1,0.1432644]
[1731797640196,3.728,3146.7,3146.1,3.3217844]
[1731797641713,0.8143,3147.2,3146.2,0.7611]
[1731797641894,0.8143,3147.6,3147.0,3.17753]
[1731797642057,3.17647,3148.2,3147.2,3.17734]
[1731797642354,1.30667017,3148.1,3147.4,3.17719]
[1731797643002,3.17662,3148.0,3147.2,3.17734]
[1731797643294,3.17662,3148.0,3147.3,3.17729]
[1731797644071,0.55,3147.9,3147.4,3.17721]
[1731797645889,0.55,3148.0,3147.2,3.17734]
[1731797646092,0.55,3148.0,3147.5,3.17711]
[1731797646462,0.55,3148.0,3147.7,3.17692]
[1731797647004,0.55,3148.0,3147.7,3.12692]
[1731797649696,0.55,3148.0,3147.8,3.17681]
[1731797649906,0.55,3148.4,3148.0,3.1766]
[1731797650204,3.17577,3148.9,3148.1,3.93754]
[1731797650410,0.62441979,3148.8,3148.1,3.93754]
[1731797650768,0.62441979,3148.8,3148.2,3.17638]
[1731797651076,3.80024979,3148.8,3148.2,3.17638]
[1731797651296,0.55,3148.7,3148.2,3.17638]
[1731797652727,0.55,3148.5,3148.2,3.17638]
[1731797652934,0.372581,3148.6,3148.2,3.17638]
[1731797657442,0.372581,3148.6,3148.3,3.1763]
[1731797657735,0.55,3148.9,3148.3,3.1763]
[1731797657893,3.17581,3148.8,3148.2,3.17638]
[1731797658101,0.55,3148.7,3148.2,3.17638]
[1731797658436,1.3574,3148.5,3148.0,3.1766]
[1731797658636,0.55,3148.3,3147.8,6.35353]
[1731797658935,1.058352,3148.3,3147.8,3.16679]
[1731797659104,0.508352,3148.3,3147.9,3.1767]
[1731797659838,0.8074,3148.4,3147.9,3.1767]
[1731797661295,0.8074,3148.4,3147.8,3.16679]
[1731797662540,0.8157,3147.7,3147.0,3.17756]
[1731797662842,3.99272,3147.6,3147.0,3.17756]
[1731797663836,0.55,3147.5,3146.8,3.17776]
[1731797664051,3.72712,3147.5,3146.8,3.17776]
[1731797664548,0.55,3147.3,3146.8,3.17776]
[1731797665435,0.8157,3147.2,3146.8,3.17776]
[1731797667524,0.8157,3147.2,3146.7,3.0]
[1731797668171,0.55,3147.1,3146.7,3.0]
[1731797668519,0.55,3147.1,3146.6,3.17795]
[1731797670426,0.55,3147.1,3146.7,3.17792]
[1731797670859,0.55,3147.1,3146.6,3.17795]
[1731797671164,0.55,3147.1,3146.6,6.35591]
[1731797671665,0.55,3147.1,3146.6,3.17795]
[1731797672469,0.55,3147.1,3146.6,6.35589]
[1731797672820,0.55,3147.1,3146.6,3.17794]
[1731797673765,0.55,3147.1,3146.6,6.35589]
[1731797673936,0.55,3147.1,3146.6,3.17794]
[1731797674140,0.55,3147.1,3146.7,3.17791]
[1731797674317,1.004305,3147.1,3146.7,3.17791]
[1731797674869,1.004305,3147.1,3146.8,3.17774]
[1731797675042,0.55,3147.1,3146.8,3.17774]
[1731797676830,0.8157,3147.2,3146.8,3.17774]
[1731797677028,0.8157,3147.2,3147.0,3.17761]
[1731797678131,0.8157,3147.2,3147.1,3.17752]
[1731797678478,3.17624,3148.4,3147.7,3.17685]
[1731797678773,3.17624,3148.4,3147.7,3.94785]
[1731797679933,0.55,3148.3,3147.7,3.94785]
[1731797680668,3.72632,3148.3,3147.7,3.94785]
[1731797680867,3.17649,3148.2,3147.7,0.771]
[1731797681177,0.922649,3148.1,3147.5,3.17709]
[1731797681333,4.099179,3148.1,3147.5,3.17709]
[1731797681540,3.72653,3148.1,3147.5,3.17709]
[1731797682034,3.72653,3148.1,3147.5,6.35413]
[1731797682435,3.72653,3148.1,3147.6,3.17701]
[1731797682696,3.72638,3148.3,3147.6,3.17701]
[1731797682882,4.122145,3148.3,3147.6,3.17701]
[1731797683179,0.55,3148.1,3147.6,3.17701]
[1731797684967,0.55,3148.2,3147.7,3.17691]
[1731797686003,0.55,3148.2,3147.8,3.17678]
[1731797686157,0.9622015,3148.2,3147.8,3.17678]
[1731797687506,0.9622015,3148.2,3147.9,3.17669]
[1731797687805,0.55,3148.4,3148.1,3.17651]
[1731797688118,3.93315,3148.8,3148.2,3.17633]
[1731797688465,0.7573,3148.8,3148.3,3.17627]
[1731797688800,0.81669014,3148.8,3148.3,3.17627]
[1731797689194,1.66415431,3148.8,3148.3,3.17627]
[1731797689392,0.90685431,3148.8,3148.3,3.17627]